bitfinex-derivatives/quotes_BTCF0:USTF0_20241003
["timestamp","ask_amount","ask_price","bid_price","bid_amount"]
[1727988051731,0.121,60795.0,60794.0,0.13150285]
[1727988052126,0.121,60795.0,60794.0,0.082249]
[1727988052732,0.121,60795.0,60794.0,0.28037843]
[1727988053331,0.121,60795.0,60794.0,0.18200464]
[1727988053531,0.12,60795.0,60794.0,0.18300464]
[1727988053734,0.12,60795.0,60794.0,0.28137843]
[1727988054230,0.12,60795.0,60794.0,0.18300464]
[1727988054928,0.12,60795.0,60794.0,0.18300202]
[1727988055127,0.12,60795.0,60794.0,0.20127196]
[1727988057328,0.12,60795.0,60794.0,0.20027196]
[1727988059629,0.12,60795.0,60794.0,0.20025597]
[1727988060333,0.443042,60799.0,60794.0,0.23800697]
[1727988060535,0.3608,60799.0,60798.0,0.202243]
[1727988061327,0.082232,60807.0,60806.0,0.082232]
[1727988062840,0.12,60809.0,60800.0,0.152]
[1727988063041,0.12,60801.0,60800.0,0.11424]
[1727988063233,0.202239,60801.0,60800.0,0.08224]
[1727988063544,0.082246,60797.0,60795.0,0.082246]
[1727988063749,0.082246,60796.0,60795.0,0.082246]
[1727988064038,0.082247,60795.0,60794.0,0.01826994]
[1727988064246,0.082247,60795.0,60790.0,0.0321]
[1727988064433,0.12,60791.0,60790.0,0.114354]
[1727988065538,0.272247,60795.0,60793.0,0.082249]
[1727988066235,0.272247,60795.0,60794.0,0.082249]
[1727988067648,0.272247,60795.0,60794.0,0.18173481]
[1727988070342,0.19,60795.0,60794.0,0.18173481]
[1727988070747,0.082245,60797.0,60795.0,0.082247]
[1727988070948,0.082245,60797.0,60796.0,0.08200941]
[1727988071448,0.082245,60797.0,60796.0,0.18153409]
[1727988072349,0.082245,60797.0,60796.0,0.09952468]
[1727988073746,0.083245,60797.0,60796.0,0.09952468]
[1727988074055,0.083245,60797.0,60796.0,0.18177068]
[1727988075252,0.083245,60797.0,60796.0,0.28014447]
[1727988075644,0.083245,60797.0,60796.0,0.082246]
[1727988077345,0.083245,60797.0,60796.0,0.14794323]
[1727988081557,0.084245,60797.0,60796.0,0.14794323]
[1727988082258,0.083245,60797.0,60796.0,0.14794323]
[1727988082559,0.083245,60797.0,60796.0,0.30083516]
[1727988083855,0.001,60797.0,60796.0,0.30083516]
[1727988084057,0.083245,60797.0,60796.0,0.55386141]
[1727988084261,0.083245,60797.0,60796.0,0.43880054]
[1727988084757,0.083245,60797.0,60796.0,0.55387338]
[1727988084956,0.082245,60797.0,60796.0,0.55387338]
[1727988085358,0.082245,60797.0,60796.0,0.43880054]
[1727988085751,0.082245,60797.0,60796.0,0.55387886]
[1727988085752,0.083245,60797.0,60796.0,0.55387886]
[1727988086360,0.001,60797.0,60796.0,0.55387886]
[1727988086561,0.001,60797.0,60796.0,0.45415579]
[1727988086761,0.001,60797.0,60796.0,0.4387753]
[1727988087361,0.082243,60798.0,60796.0,0.4387753]
[1727988087668,0.082243,60798.0,60797.0,0.4158852]
[1727988088361,0.082243,60798.0,60797.0,0.55388142]
[1727988088758,0.082243,60798.0,60797.0,0.4158852]
[1727988089453,0.082243,60798.0,60797.0,0.55390215]
[1727988090560,0.083243,60798.0,60797.0,0.55392559]
[1727988090863,0.083243,60798.0,60797.0,0.30079189]
[1727988091964,0.082243,60798.0,60797.0,0.30079189]
[1727988092155,0.084243,60798.0,60797.0,0.30079189]
[1727988093564,0.084243,60798.0,60797.0,0.31867568]
[1727988094365,0.084243,60798.0,60797.0,0.19983258]
[1727988097669,0.084243,60798.0,60797.0,0.10012879]
[1727988102769,0.204243,60798.0,60797.0,0.10012879]
[1727988103282,0.204243,60798.0,60797.0,0.01788379]
[1727988103466,0.204243,60798.0,60797.0,0.082245]
[1727988105871,0.204243,60798.0,60797.0,0.55447581]
[1727988106380,0.122,60798.0,60797.0,0.43935906]
[1727988106575,0.204244,60798.0,60797.0,0.43935906]
[1727988107174,0.204244,60798.0,60797.0,0.4380963]
[1727988110676,0.697684,60798.0,60797.0,0.21813129]
[1727988110880,1.297684,60798.0,60793.0,0.11516846]
[1727988111084,1.297684,60798.0,60783.0,0.13125643]
[1727988111085,0.082255,60789.0,60783.0,0.13125643]
[1727988111379,0.082255,60789.0,60779.0,0.082268]
[1727988111380,0.082268,60780.0,60779.0,0.082268]
[1727988111582,0.12,60780.0,60779.0,0.082268]
[1727988112773,0.202268,60780.0,60779.0,0.082268]
[1727988112979,0.203268,60780.0,60779.0,0.096268]
[1727988113488,0.203268,60780.0,60779.0,0.014]
[1727988114172,0.203268,60780.0,60779.0,0.09604989]
[1727988115273,0.203268,60780.0,60779.0,0.014]
[1727988118076,0.001,60780.0,60779.0,0.216269]
[1727988118275,0.082247,60796.0,60779.0,1.67044989]
[1727988118478,0.082247,60796.0,60795.0,0.12]
[1727988118680,0.082245,60797.0,60795.0,0.202247]
[1727988118873,0.082245,60797.0,60796.0,0.08186173]
[1727988119280,0.082242,60799.0,60796.0,0.18050762]
[1727988119682,0.082242,60799.0,60797.0,0.06556162]
[1727988119882,0.082242,60799.0,60796.0,0.19699589]
[1727988120388,0.082243,60798.0,60796.0,0.19699589]
[1727988121183,0.082243,60798.0,60796.0,0.13262837]
[1727988121479,0.082243,60798.0,60796.0,0.21467826]
[1727988121683,0.082243,60798.0,60797.0,0.082245]
[1727988121874,0.12,60800.0,60799.0,0.082242]
[1727988122077,0.082234,60805.0,60803.0,0.082236]
[1727988122374,0.08223,60808.0,60804.0,0.18554288]
[1727988122575,0.08223,60808.0,60807.0,0.082231]
[1727988122777,0.08223,60808.0,60807.0,0.14777388]
[1727988123279,0.08223,60808.0,60807.0,0.082231]
[1727988123783,0.00246752,60811.0,60808.0,0.08223]
[1727988123986,0.00246752,60811.0,60805.0,0.1827]
[1727988123987,0.00246752,60811.0,60810.0,0.202227]
[1727988124193,0.00246752,60811.0,60810.0,0.26776988]
[1727988124380,0.00246752,60811.0,60810.0,0.202227]
[1727988125209,0.00246752,60811.0,60810.0,0.14773697]
[1727988125378,0.12246752,60811.0,60810.0,0.06550997]
[1727988125577,0.12946752,60811.0,60810.0,0.06650968]
[1727988125778,0.21169352,60811.0,60810.0,0.001]
[1727988125987,0.27419352,60811.0,60810.0,0.001]
[1727988127583,0.34419352,60811.0,60810.0,0.001]
[1727988131080,0.67389352,60811.0,60810.0,0.001]
[1727988131682,0.64249352,60811.0,60810.0,0.001]
[1727988133494,0.45249352,60811.0,60810.0,0.083227]
[1727988136194,0.64249352,60811.0,60810.0,0.001]
[1727988137192,1.13581352,60811.0,60810.0,0.001]
[1727988137787,0.64249352,60811.0,60810.0,0.001]
[1727988141096,0.64249352,60811.0,60810.0,0.083227]
[1727988143704,0.640026,60811.0,60810.0,0.083227]
[1727988145000,0.640026,60811.0,60810.0,0.001]
[1727988145198,0.279226,60811.0,60810.0,0.001]
[1727988148710,0.640026,60811.0,60810.0,0.001]
[1727988149904,0.83174742,60811.0,60810.0,0.00034346]
[1727988150499,0.83174742,60811.0,60810.0,0.08257046]
[1727988150699,0.75897583,60811.0,60810.0,0.08257046]
[1727988151700,0.83180499,60811.0,60810.0,0.08257046]
[1727988153404,0.75897583,60811.0,60810.0,0.08257046]
[1727988153606,0.83176801,60811.0,60810.0,0.08257046]
[1727988153809,0.20817583,60811.0,60810.0,0.08257046]
[1727988154013,0.07629462,60811.0,60810.0,0.08257046]
[1727988154209,0.3608,60814.0,60813.0,0.082223]
[1727988154403,0.4250901,60814.0,60813.0,0.272223]
[1727988154616,0.13059363,60818.0,60813.0,0.272223]
[1727988154924,0.13059363,60821.0,60820.0,0.082213]
[1727988155102,0.13059363,60821.0,60817.0,0.19]
[1727988155103,0.06406846,60821.0,60817.0,0.19]
[1727988155301,0.21280363,60823.0,60821.0,0.082212]
[1727988155508,0.06413569,60822.0,60821.0,0.082212]
[1727988155708,0.14634669,60822.0,60821.0,0.082212]
[1727988156505,0.082211,60822.0,60821.0,0.082212]
[1727988156913,0.083211,60822.0,60821.0,0.083212]
[1727988159909,0.083211,60822.0,60821.0,0.001]
[1727988160806,0.083211,60822.0,60821.0,0.01910571]
[1727988161007,0.083211,60822.0,60821.0,0.001]
[1727988164908,0.083211,60822.0,60821.0,0.01756584]
[1727988165114,0.083211,60822.0,60818.0,0.063]
[1727988165115,0.082215,60820.0,60819.0,0.082214]
[1727988165414,0.20129557,60820.0,60819.0,0.082214]
[1727988165617,0.11908057,60820.0,60819.0,0.082214]
[1727988165818,0.05510319,60820.0,60819.0,0.114914]
[1727988166118,0.06316268,60820.0,60819.0,0.0327]
[1727988166315,0.082211,60822.0,60819.0,0.0337]
[1727988166518,0.11758569,60821.0,60820.0,0.082213]
[1727988167515,0.05443317,60821.0,60820.0,0.082213]
[1727988167715,0.13664517,60821.0,60820.0,0.082213]
[1727988168120,0.19982678,60821.0,60820.0,0.082213]
[1727988168629,0.082213,60820.0,60819.0,0.001]
[1727988168818,0.19982778,60820.0,60819.0,0.001]
[1727988169922,0.20282778,60820.0,60819.0,0.001]
[1727988170518,0.20282778,60820.0,60819.0,0.083215]
[1727988172223,0.20282778,60820.0,60819.0,0.001]
[1727988172423,0.26632778,60820.0,60819.0,0.001]
[1727988172924,0.148713,60820.0,60819.0,0.001]
[1727988173222,0.162713,60820.0,60819.0,0.084215]
[1727988175620,0.162713,60820.0,60819.0,0.002]
[1727988177031,0.162713,60820.0,60819.0,0.084215]
[1727988181225,0.162713,60820.0,60819.0,0.002]
[1727988183935,0.655993,60820.0,60819.0,0.002]
[1727988186725,1.016793,60820.0,60819.0,0.002]
[1727988188035,0.77085671,60820.0,60819.0,0.002]
[1727988188436,0.41005671,60820.0,60819.0,0.002]
[1727988188745,0.77085671,60820.0,60819.0,0.002]
[1727988191545,0.89085671,60820.0,60819.0,0.002]
[1727988191935,1.63048208,60820.0,60819.0,0.002]
[1727988192135,0.082234,60808.0,60807.0,0.08223]
[1727988192444,0.19902176,60808.0,60807.0,0.08223]
[1727988193744,0.20102176,60808.0,60807.0,0.08323]
[1727988194143,0.20302176,60808.0,60807.0,0.08423]
[1727988195038,0.086234,60808.0,60807.0,0.08423]
[1727988195843,0.086234,60808.0,60807.0,0.002]
[1727988199444,0.086234,60808.0,60799.0,0.39288]
[1727988199445,0.643894,60808.0,60796.0,0.04913023]
[1727988199643,0.082246,60796.0,60793.0,0.082249]
[1727988199948,0.082246,60796.0,60794.0,0.082248]
[1727988200347,0.082246,60796.0,60792.0,0.04913023]
[1727988200348,0.082246,60796.0,60795.0,0.28627504]
[1727988200742,0.082246,60796.0,60795.0,0.22246252]
[1727988201451,0.082246,60796.0,60795.0,0.22746252]
[1727988201652,0.272246,60796.0,60795.0,0.22746252]
[1727988201845,0.272246,60796.0,60795.0,0.22446252]
[1727988203039,0.274246,60796.0,60795.0,0.22346252]
[1727988214462,0.274246,60796.0,60795.0,0.01943448]
[1727988221668,0.32745513,60796.0,60795.0,0.01943448]
[1727988221966,0.68825513,60796.0,60795.0,0.01943448]
[1727988223570,0.61825513,60796.0,60795.0,0.01943448]
[1727988224470,0.61825513,60796.0,60795.0,0.001]
[1727988225174,0.61825513,60796.0,60790.0,0.04913023]
[1727988225175,0.082253,60791.0,60790.0,0.04913023]
[1727988225374,0.082254,60790.0,60789.0,0.04913023]
[1727988225569,0.082255,60789.0,60788.0,0.04927932]
[1727988225775,0.202255,60789.0,60788.0,0.04927932]
[1727988225967,0.082257,60788.0,60787.0,0.04927932]
[1727988226169,0.202257,60788.0,60787.0,0.04927932]
[1727988226476,0.202257,60788.0,60786.0,0.04927932]
[1727988226661,0.082257,60788.0,60787.0,0.04927932]
[1727988226865,0.202257,60788.0,60786.0,0.04927932]
[1727988227068,0.202258,60787.0,60786.0,0.04927932]
[1727988227572,0.202258,60787.0,60786.0,0.04928476]
[1727988228882,0.202258,60787.0,60786.0,0.05028476]
[1727988229777,0.214258,60787.0,60786.0,0.05128476]
[1727988231577,0.214258,60787.0,60786.0,0.002]
[1727988236888,0.575058,60787.0,60786.0,0.002]
[1727988243480,0.455058,60787.0,60786.0,0.002]
[1727988243685,0.575058,60787.0,60786.0,0.002]
[1727988248102,0.455058,60787.0,60786.0,0.084259]
[1727988248309,0.094258,60787.0,60786.0,0.084259]
[1727988248714,0.094258,60787.0,60786.0,0.14976868]
[1727988249205,0.094258,60787.0,60786.0,0.084259]
[1727988249611,0.094258,60787.0,60786.0,0.14976868]
[1727988250205,0.094258,60787.0,60786.0,0.084259]
[1727988250405,0.094258,60787.0,60786.0,0.14976868]
[1727988252101,0.012,60787.0,60786.0,0.14976868]
[1727988252299,0.012,60787.0,60786.0,1.658579]
[1727988252509,0.443045,60797.0,60786.0,1.85357626]
[1727988252717,0.443045,60797.0,60796.0,0.082246]
[1727988252904,0.443045,60797.0,60796.0,0.14798729]
[1727988253910,0.567045,60797.0,60796.0,0.14798729]
[1727988254206,0.567045,60797.0,60796.0,0.06574129]
[1727988254409,0.567045,60797.0,60796.0,0.001]
[1727988254603,0.567045,60797.0,60796.0,0.05030724]
[1727988254803,0.567045,60797.0,60796.0,0.001]
[1727988255208,0.62002793,60797.0,60796.0,0.001]
[1727988255599,0.62002793,60797.0,60796.0,0.002]
[1727988256404,0.62002793,60797.0,60796.0,0.001]
[1727988256602,0.61603249,60797.0,60796.0,0.001]
[1727988257013,0.25523249,60797.0,60796.0,0.001]
[1727988257318,0.61603249,60797.0,60796.0,0.001]
[1727988257505,0.53378749,60797.0,60782.0,0.36326738]
[1727988257705,0.082261,60787.0,60786.0,0.082257]
[1727988258907,0.202261,60787.0,60786.0,0.082257]
[1727988267421,0.202261,60787.0,60786.0,0.14799829]
[1727988269524,0.202261,60787.0,60786.0,0.082257]
[1727988273519,0.563061,60787.0,60786.0,0.082257]
[1727988274815,0.563061,60787.0,60786.0,0.26143769]
[1727988275021,0.563061,60787.0,60786.0,0.16443362]
[1727988275420,0.202261,60787.0,60786.0,0.16443362]
[1727988275717,0.202261,60787.0,60786.0,0.082257]
[1727988275923,0.202261,60787.0,60786.0,0.16443362]
[1727988278324,0.202261,60787.0,60786.0,0.082257]
[1727988280921,0.082251,60794.0,60793.0,0.082249]
[1727988281117,0.13514529,60794.0,60793.0,0.082249]
[1727988281319,0.13514529,60794.0,60793.0,0.202249]
[1727988281516,0.13525052,60794.0,60793.0,0.202249]
[1727988281819,0.3608,60795.0,60793.0,0.12]
[1727988282021,0.3608,60795.0,60794.0,0.082249]
[1727988282218,0.41379442,60795.0,60794.0,0.082249]
[1727988282612,0.3608,60795.0,60794.0,0.082249]
[1727988284024,0.3608,60795.0,60794.0,0.084249]
[1727988284612,0.082246,60796.0,60794.0,0.002]
[1727988284816,0.3608,60795.0,60794.0,0.084249]
[1727988286320,0.563047,60795.0,60794.0,0.084249]
[1727988286714,0.563047,60795.0,60794.0,0.083249]
[1727988286921,0.563047,60795.0,60794.0,0.084249]
[1727988287218,0.202247,60795.0,60794.0,0.084249]
[1727988287723,0.563047,60795.0,60794.0,0.084249]
[1727988288031,0.563047,60795.0,60794.0,0.1022455]
[1727988288620,0.563047,60795.0,60794.0,0.1012455]
[1727988288621,0.202247,60795.0,60794.0,0.1012455]
[1727988288826,0.506234,60805.0,60802.0,0.082236]
[1727988288827,0.082238,60803.0,60802.0,0.082236]
[1727988289119,0.082238,60803.0,60802.0,0.202236]
[1727988289323,0.082238,60803.0,60802.0,0.26798002]
[1727988289526,0.082238,60803.0,60802.0,0.202236]
[1727988289713,0.082235,60806.0,60805.0,0.082231]
[1727988289916,0.082235,60806.0,60805.0,0.13150424]
[1727988290527,0.202235,60806.0,60805.0,0.082231]
[1727988290821,0.202235,60806.0,60803.0,0.04927324]
[1727988291025,0.202235,60806.0,60802.0,0.001]
[1727988291223,0.202236,60803.0,60802.0,0.001]
[1727988291425,0.08224,60800.0,60799.0,0.3608]
[1727988291620,0.20224,60800.0,60799.0,0.3608]
[1727988292126,0.20224,60800.0,60796.0,0.04927324]
[1727988292330,0.20224,60800.0,60796.0,0.13151924]
[1727988292331,0.202245,60797.0,60796.0,0.13151924]
[1727988292627,0.202245,60797.0,60796.0,0.082246]
[1727988293224,0.25539904,60797.0,60796.0,0.082246]
[1727988293622,0.32539904,60797.0,60796.0,0.082246]
[1727988300222,0.272245,60797.0,60796.0,0.082246]
[1727988300634,0.082247,60795.0,60794.0,0.01774572]
[1727988300833,0.082247,60795.0,60794.0,0.082249]
[1727988307128,0.2207,60805.0,60794.0,0.082249]
[1727988307335,0.082234,60807.0,60806.0,0.08223]
[1727988307529,0.00434739,60809.0,60808.0,0.08223]
[1727988307735,0.00246738,60809.0,60808.0,0.27223]
[1727988309043,0.00246738,60809.0,60808.0,0.27323]
[1727988309229,0.00246738,60809.0,60808.0,0.08323]
[1727988309838,0.08469538,60809.0,60808.0,0.08323]
[1727988310034,0.08469538,60809.0,60808.0,0.08423]
[1727988310339,0.08469538,60809.0,60808.0,0.1023179]
[1727988316948,0.00246738,60809.0,60808.0,0.1023179]
[1727988323749,0.202226,60811.0,60810.0,0.082227]
[1727988325548,0.202226,60811.0,60810.0,0.083227]
[1727988325755,0.202226,60811.0,60810.0,0.084227]
[1727988331358,0.25603548,60811.0,60810.0,0.084227]
[1727988331751,0.202226,60811.0,60810.0,0.084227]
[1727988332245,0.25604909,60811.0,60810.0,0.084227]
[1727988335854,0.25600192,60811.0,60810.0,0.084227]
[1727988337252,0.31852745,60811.0,60810.0,0.084227]
[1727988338451,0.202226,60811.0,60810.0,0.084227]
[1727988339655,0.202226,60811.0,60810.0,0.15002194]
[1727988341062,0.202226,60811.0,60810.0,0.084227]
[1727988341957,0.202226,60811.0,60810.0,0.002]
[1727988342158,0.232326,60811.0,60810.0,0.05133418]
[1727988342371,0.082231,60807.0,60805.0,0.06578772]
[1727988342661,0.082236,60803.0,60802.0,0.0657852]
[1727988342851,0.12,60803.0,60801.0,0.0657852]
[1727988343056,0.082238,60802.0,60801.0,0.0657852]
[1727988343252,0.08224,60800.0,60799.0,0.01802898]
[1727988343451,0.12,60800.0,60798.0,0.0657852]
[1727988343654,0.082243,60798.0,60797.0,0.06575405]
[1727988343852,0.202243,60798.0,60797.0,0.06575405]
[1727988344055,0.082245,60797.0,60796.0,0.082245]
[1727988344255,0.082245,60797.0,60796.0,0.14796515]
[1727988345562,0.082246,60796.0,60795.0,0.01782917]
[1727988345765,0.082245,60797.0,60794.0,0.082248]
[1727988345965,0.202247,60795.0,60794.0,0.082248]
[1727988347070,0.202247,60795.0,60794.0,0.083248]
[1727988350560,0.202247,60795.0,60794.0,0.001]
[1727988351164,0.202247,60795.0,60794.0,0.083249]
[1727988351672,0.082246,60798.0,60797.0,0.082243]
[1727988351870,0.082246,60798.0,60797.0,0.202243]
[1727988352174,0.082246,60798.0,60797.0,0.082243]
[1727988352668,0.082242,60799.0,60795.0,0.0649]
[1727988352669,0.082242,60799.0,60798.0,0.082243]
[1727988353471,0.082242,60799.0,60798.0,0.14796315]
[1727988354075,0.083242,60799.0,60798.0,0.14796315]
[1727988357575,0.083242,60799.0,60798.0,0.082243]
[1727988360082,0.083242,60799.0,60798.0,0.14796315]
[1727988362585,0.083242,60799.0,60798.0,0.082243]
[1727988362884,0.083242,60799.0,60795.0,0.0649]
[1727988363076,0.202246,60796.0,60793.0,0.09998928]
[1727988363277,0.202246,60796.0,60793.0,0.01781266]
[1727988363278,0.082249,60794.0,60793.0,0.01781266]
[1727988363485,0.202246,60796.0,60792.0,0.08206305]
[1727988363683,0.082253,60791.0,60790.0,0.16431705]
[1727988363880,0.082253,60791.0,60790.0,0.01788205]
[1727988364084,0.082253,60791.0,60788.0,0.06566117]
[1727988364285,0.082257,60788.0,60786.0,0.06566117]
[1727988364493,0.12,60787.0,60772.0,0.09825144]
[1727988364679,0.3608,60782.0,60775.0,0.00084]
[1727988364878,0.440073,60776.0,60775.0,0.00084]
[1727988365080,0.082278,60772.0,60771.0,0.00246815]
[1727988365275,0.082282,60769.0,60768.0,0.001]
[1727988365475,0.202282,60769.0,60768.0,0.001]
[1727988365689,0.082288,60765.0,60764.0,0.0175976]
[1727988365883,0.082288,60765.0,60761.0,0.3608]
[1727988365884,0.082292,60762.0,60761.0,0.3608]
[1727988366079,0.082292,60762.0,60761.0,0.443093]
[1727988366395,0.202292,60762.0,60761.0,0.46127983]
[1727988366684,0.12,60762.0,60751.0,0.00246885]
[1727988366885,0.12,60752.0,60751.0,0.08477485]
[1727988367076,0.082296,60760.0,60756.0,0.0823]
[1727988367279,0.082296,60759.0,60756.0,0.0823]
[1727988367681,0.182,60757.0,60756.0,0.0823]
[1727988368189,0.182,60757.0,60756.0,0.0893]
[1727988368785,0.19,60761.0,60756.0,0.007]
[1727988368988,0.272294,60761.0,60760.0,0.082295]
[1727988370294,0.273294,60761.0,60760.0,0.083295]
[1727988371578,0.273294,60761.0,60760.0,0.001]
[1727988373684,0.273294,60761.0,60760.0,0.01901535]
[1727988373884,0.273294,60761.0,60760.0,0.001]
[1727988378986,0.273294,60761.0,60760.0,0.083295]
[1727988380989,0.634094,60761.0,60760.0,0.083295]
[1727988388095,0.273294,60761.0,60760.0,0.083295]
[1727988388299,0.634094,60761.0,60760.0,0.083295]
[1727988389602,0.564094,60761.0,60760.0,0.083295]
[1727988392699,0.001,60761.0,60760.0,0.203295]
[1727988392898,0.3608,60768.0,60766.0,0.082286]
[1727988393095,0.443084,60768.0,60766.0,0.082286]
[1727988393293,0.4808,60768.0,60766.0,0.082286]
[1727988393499,0.4828,60768.0,60763.0,0.082289]
[1727988393697,0.082289,60764.0,60763.0,0.082289]
[1727988393899,0.082289,60764.0,60763.0,0.17828917]
[1727988394598,0.202289,60764.0,60763.0,0.27654061]
[1727988395496,0.202289,60764.0,60763.0,0.17828917]
[1727988396097,0.204289,60764.0,60763.0,0.17828917]
[1727988397900,0.204289,60764.0,60763.0,0.09600017]
[1727988398092,0.204289,60764.0,60763.0,0.19472173]
[1727988398502,0.208289,60764.0,60762.0,0.08226714]
[1727988398708,0.208289,60764.0,60762.0,0.16455914]
[1727988398709,0.082291,60763.0,60762.0,0.16455914]
[1727988398901,0.082291,60763.0,60762.0,0.26075305]
[1727988399303,0.208289,60764.0,60762.0,0.26075305]
[1727988399304,0.006,60764.0,60762.0,0.26075305]
[1727988399496,0.002,60764.0,60763.0,0.082291]
[1727988399708,0.004,60764.0,60763.0,0.70245381]
[1727988399905,0.3608,60772.0,60767.0,0.082285]
[1727988400214,0.3628,60780.0,60771.0,0.28453656]
[1727988400397,0.3608,60780.0,60775.0,0.082274]
[1727988400597,0.3608,60780.0,60777.0,0.082269]
[1727988400598,0.082271,60778.0,60777.0,0.082269]
[1727988400798,0.082273,60777.0,60775.0,0.11255656]
[1727988401004,0.082274,60775.0,60774.0,0.08225656]
[1727988401203,0.202274,60775.0,60774.0,0.08225656]
[1727988401503,0.082276,60774.0,60773.0,0.16453356]
[1727988401704,0.082276,60774.0,60773.0,0.082277]
[1727988402606,0.096276,60774.0,60773.0,0.083277]
[1727988402798,0.109276,60774.0,60773.0,0.084277]
[1727988404104,0.109276,60774.0,60773.0,0.10244384]
[1727988409505,0.109276,60774.0,60773.0,0.02016684]
[1727988409703,0.470076,60774.0,60773.0,0.002]
[1727988409911,1.563716,60774.0,60773.0,0.002]
[1727988410715,1.563716,60774.0,60759.0,0.16455256]
[1727988410716,0.082295,60760.0,60759.0,0.16455256]
[1727988410906,0.272295,60760.0,60759.0,0.10009914]
[1727988411313,0.272295,60760.0,60759.0,0.01780314]
[1727988411619,0.082297,60758.0,60757.0,0.082299]
[1727988411906,0.079297,60758.0,60755.0,0.08225656]
[1727988412123,0.19,60756.0,60754.0,0.52535856]
[1727988412415,0.082301,60755.0,60754.0,0.46072864]
[1727988412807,0.080301,60755.0,60754.0,0.46072864]
[1727988413119,0.073301,60755.0,60754.0,0.46072864]
[1727988413810,0.074301,60755.0,60754.0,0.66326253]
[1727988414413,0.075301,60755.0,60754.0,0.66526253]
[1727988417809,0.075301,60755.0,60754.0,0.56679175]
[1727988418113,0.075301,60755.0,60754.0,0.56680081]
[1727988418515,0.075301,60755.0,60754.0,0.66526916]
[1727988418516,0.002,60755.0,60754.0,0.66526916]
[1727988418909,0.084301,60755.0,60754.0,0.56680081]
[1727988419411,0.084301,60755.0,60754.0,0.66526873]
[1727988420611,0.084301,60755.0,60754.0,0.56680081]
[1727988421418,0.084301,60755.0,60754.0,0.56681586]
[1727988421819,0.002,60755.0,60754.0,0.56681586]
[1727988423017,0.2524,60771.0,60754.0,1.57831386]
[1727988423218,0.2524,60771.0,60765.0,0.082286]
[1727988423219,0.082289,60766.0,60765.0,0.082286]
[1727988423525,0.082292,60763.0,60762.0,0.082291]
[1727988423820,0.19,60763.0,60756.0,0.09846792]
[1727988424027,0.082296,60759.0,60758.0,0.082297]
[1727988424213,0.082297,60758.0,60757.0,0.08204832]
[1727988424421,0.082297,60758.0,60754.0,0.11155496]
[1727988424422,0.112397,60758.0,60754.0,0.11155496]
[1727988424713,0.082301,60755.0,60754.0,0.02862664]
[1727988424917,0.082301,60755.0,60754.0,0.02562664]
[1727988425130,0.082301,60755.0,60754.0,0.01762664]
[1727988425318,0.272301,60755.0,60754.0,0.001]
[1727988425925,0.273301,60755.0,60754.0,0.083303]
[1727988426627,0.273301,60755.0,60754.0,0.001]
[1727988426824,0.274301,60755.0,60754.0,0.006]
[1727988428926,0.274301,60755.0,60754.0,0.088303]
[1727988430528,0.274301,60755.0,60754.0,0.17035132]
[1727988430827,0.002,60755.0,60754.0,0.26653281]
[1727988431021,0.002,60755.0,60754.0,0.37448449]
[1727988431223,0.3608,60765.0,60762.0,0.082289]
[1727988431224,0.082291,60763.0,60762.0,0.082289]
[1727988432537,0.084291,60763.0,60762.0,0.082289]
[1727988434023,0.087291,60763.0,60762.0,0.082289]
[1727988434428,0.087291,60763.0,60762.0,0.16430129]
[1727988434629,0.087291,60763.0,60762.0,0.26036696]
[1727988434931,0.087291,60763.0,60762.0,0.17835467]
[1727988435626,0.087291,60763.0,60762.0,0.082289]
[1727988436231,0.087291,60763.0,60762.0,0.099954]
[1727988438137,0.08228,60771.0,60762.0,1.47971859]
[1727988438338,0.08228,60771.0,60768.0,0.082284]
[1727988438635,0.08228,60771.0,60768.0,0.27679651]
[1727988438822,0.08228,60771.0,60768.0,0.36989651]
[1727988439226,0.08475115,60769.0,60768.0,0.09604459]
[1727988439731,0.45676915,60769.0,60767.0,0.06573014]
[1727988439929,0.082285,60767.0,60766.0,0.06573014]
[1727988440126,0.272285,60767.0,60766.0,0.06573014]
[1727988440328,0.082286,60766.0,60765.0,0.06573014]
[1727988440533,0.082291,60763.0,60762.0,0.18209494]
[1727988440934,0.082288,60767.0,60766.0,0.082285]
[1727988441135,0.02146915,60769.0,60768.0,0.082284]
[1727988441327,0.01046915,60769.0,60768.0,0.082284]
[1727988441534,0.09275115,60769.0,60768.0,0.082284]
[1727988441833,0.00246915,60769.0,60768.0,0.17816623]
[1727988442438,0.01046915,60769.0,60768.0,0.17916623]
[1727988442634,0.01046915,60769.0,60768.0,0.29335102]
[1727988443137,0.01946915,60769.0,60768.0,0.29435102]
[1727988443529,0.01946915,60769.0,60768.0,0.29441319]
[1727988443731,0.01946915,60769.0,60768.0,0.18016623]
[1727988443931,0.01946915,60769.0,60768.0,0.29441189]
[1727988444145,0.01946915,60769.0,60768.0,0.29434583]
[1727988444541,0.01946915,60769.0,60768.0,0.1801168]
[1727988445239,0.01946915,60769.0,60768.0,0.2943195]
[1727988445627,0.01946915,60769.0,60768.0,0.29429435]
[1727988448241,0.01946915,60769.0,60768.0,0.29420147]
[1727988448737,0.01946915,60769.0,60768.0,0.1801168]
[1727988449530,0.01946915,60769.0,60768.0,0.27858791]
[1727988450444,0.01946915,60769.0,60768.0,0.1801168]
[1727988450641,0.29175115,60769.0,60768.0,0.0978328]
[1727988450938,0.29175115,60769.0,60768.0,0.002]
[1727988451335,0.29175115,60769.0,60768.0,0.06765017]
[1727988451537,0.29175115,60769.0,60768.0,0.002]
[1727988451840,0.29175115,60769.0,60768.0,0.06765381]
[1727988452943,0.29175115,60769.0,60765.0,0.0820598]
[1727988452944,0.20946915,60769.0,60765.0,0.0820598]
[1727988453143,0.082289,60764.0,60763.0,0.0820598]
[1727988453439,0.272291,60763.0,60762.0,0.08207375]
[1727988453646,0.272291,60763.0,60762.0,0.17809366]
[1727988453828,0.082292,60762.0,60761.0,0.16436575]